bitfinex/quotes_SOLUSD_20250622
["timestamp","ask_amount","ask_price","bid_price","bid_amount"]
[1750598801854,17.60438664,129.97,129.87,18.64964886]
[1750598802057,26.0,129.94,129.87,18.64964886]
[1750598802467,26.0,129.96,129.87,18.64964886]
[1750598802765,26.0,129.96,129.89,18.64964886]
[1750598803157,26.0,129.96,129.88,7.69941484]
[1750598803362,26.0,129.94,129.88,7.69941484]
[1750598803561,26.0,129.94,129.86,9.23272549]
[1750598803972,26.0,129.94,129.86,1.5325]
[1750598804167,26.0,129.94,129.86,9.23296374]
[1750598804369,26.0,129.94,129.86,1.5325]
[1750598804579,18.64964886,129.92,129.79,1.5325]
[1750598804784,26.0,129.88,129.79,9.23719679]
[1750598804951,7.69763682,129.91,129.79,28.49908137]
[1750598805153,9.91008949,129.97,129.8,18.64964886]
[1750598805154,7.69645193,129.93,129.8,18.64964886]
[1750598805474,7.69645193,129.93,129.79,9.23719679]
[1750598805678,26.0,129.85,129.73,6.13941484]
[1750598805992,26.0,129.84,129.73,6.13941484]
[1750598806196,26.0,129.83,129.73,6.13941484]
[1750598806367,18.64964886,129.86,129.66,0.076]
[1750598806368,26.0,129.77,129.66,0.076]
[1750598806568,28.64964886,129.77,129.66,0.076]
[1750598806768,28.64964886,129.77,129.6,1.5325]
[1750598806769,26.0,129.72,129.6,1.5325]
[1750598807080,26.0,129.72,129.6,9.24846533]
[1750598807381,26.0,129.73,129.6,28.53858878]
[1750598807551,10.0,129.81,129.6,28.53858878]
[1750598807552,9.63746164,129.77,129.6,28.53858878]
[1750598807752,26.0,129.76,129.63,26.0]
[1750598808056,0.5,129.72,129.64,18.64964886]
[1750598808257,9.63746164,129.77,129.63,18.64964886]
[1750598808464,9.63746164,129.77,129.67,26.0]
[1750598808663,9.63746164,129.77,129.7,18.64964886]
[1750598808966,19.24280068,129.92,129.72,18.64964886]
[1750598809168,19.24280068,129.92,129.74,18.64964886]
[1750598809355,19.24280068,129.92,129.72,18.64964886]
[1750598809356,29.24280068,129.92,129.72,18.64964886]
[1750598809558,26.0,129.88,129.72,18.64964886]
[1750598809856,10.28251036,129.87,129.69,26.98743156]
[1750598810054,26.0,129.84,129.69,26.98743156]
[1750598810256,26.0,129.84,129.7,18.64964886]
[1750598810561,9.62254641,129.83,129.74,18.64964886]
[1750598810759,9.62254641,129.83,129.75,26.97495182]
[1750598810970,26.0,129.8,129.75,7.70712909]
[1750598811175,26.0,129.8,129.65,7.71307365]
[1750598811376,26.0,129.8,129.65,26.99575779]
[1750598812086,26.0,129.8,129.66,18.64964886]
[1750598812271,26.0,129.78,129.65,7.71307365]
[1750598812463,26.0,129.79,129.65,7.71307365]
[1750598812670,7.70534751,129.78,129.59,27.0082568]
[1750598812980,7.70534751,129.78,129.6,18.64964886]
[1750598813350,7.70534751,129.78,129.6,28.64964886]
[1750598813580,0.5,129.77,129.62,18.64964886]
[1750598813766,0.5,129.77,129.62,28.64964886]
[1750598814291,0.5,129.77,129.59,65.59148081]
[1750598814658,0.5,129.77,129.62,26.0]
[1750598814864,0.5,129.77,129.63,28.64964886]
[1750598815063,7.70356675,129.81,129.64,18.64964886]
[1750598815258,17.03343529,129.82,129.66,18.64964886]
[1750598815484,17.03343529,129.82,129.66,28.64964886]
[1750598815779,9.33033311,129.82,129.71,18.64964886]
[1750598815984,26.0,129.79,129.7,8.0577]
[1750598816291,26.0,129.79,129.63,8.0577]
[1750598816580,26.0,129.79,129.64,18.64964886]
[1750598816881,9.33033311,129.82,129.66,18.64964886]
[1750598817594,26.0,129.79,129.65,7.71307365]
[1750598817758,26.0,129.79,129.66,18.64964886]
[1750598818158,26.0,129.75,129.66,18.64964886]
[1750598818686,26.0,129.75,129.66,18.41804381]
[1750598818987,35.16746455,129.78,129.67,26.99159404]
[1750598819190,9.16746455,129.78,129.67,26.99159404]
[1750598819385,9.16746455,129.78,129.67,65.5510141]
[1750598819593,9.16746455,129.78,129.7,26.0]
[1750598819955,38.86,129.94,129.7,10.0]
[1750598819956,7.70006556,129.87,129.7,10.0]
[1750598820303,7.70006556,129.87,129.67,142.66985422]
[1750598820501,7.70006556,129.87,129.66,18.41804381]
[1750598820502,26.0,129.84,129.66,18.41804381]
[1750598820698,26.0,129.78,129.65,7.71307365]
[1750598820881,26.0,129.74,129.57,7.71783591]
[1750598821079,26.0,129.69,129.57,7.71783591]
[1750598821415,36.0,129.69,129.52,7.72081531]
[1750598821601,26.0,129.65,129.51,15.63127293]
[1750598821780,26.0,129.63,129.51,7.90994976]
[1750598821976,26.0,129.61,129.51,15.63115038]
[1750598822280,10.01689048,129.64,129.51,34.93463311]
[1750598822505,10.01689048,129.64,129.55,10.0]
[1750598822806,9.75077864,129.78,129.65,26.0]
[1750598823114,9.75077864,129.78,129.67,26.0]
[1750598823276,1.5671,129.9,129.72,26.0]
[1750598823277,7.7000077,129.87,129.72,26.0]
[1750598823475,10.24280677,129.89,129.72,26.0]
[1750598823900,10.24280677,129.89,129.73,26.0]
[1750598824407,10.24280677,129.89,129.74,18.64964886]
[1750598824612,10.24280677,129.89,129.67,6.009]
[1750598824781,10.0,129.88,129.73,7.70831727]
[1750598824983,18.64964886,129.87,129.71,7.70908886]
[1750598825189,26.0,129.8,129.57,27.0124257]
[1750598825519,26.0,129.76,129.57,37.0124257]
[1750598825689,9.86555736,129.79,129.6,26.0]
[1750598825874,26.0,129.76,129.6,36.0]
[1750598826078,9.86555736,129.79,129.69,18.64964886]
[1750598826540,26.0,129.76,129.59,10.0]
[1750598826882,26.0,129.76,129.62,44.64964886]
[1750598827086,9.86555736,129.79,129.62,44.64964886]
[1750598827296,9.86555736,129.79,129.66,18.64964886]
[1750598827492,9.86555736,129.79,129.7,18.64964886]
[1750598827695,8.90640902,129.91,129.78,18.64964886]
[1750598827909,8.90640902,129.91,129.81,26.0]
[1750598828112,8.90640902,129.91,129.79,18.64964886]
[1750598828329,26.0,129.88,129.69,10.0]
[1750598828516,8.90640902,129.91,129.74,26.0]
[1750598828692,8.69975505,129.9,129.74,26.0]
[1750598828900,8.69975505,129.9,129.77,18.64964886]
[1750598829099,16.39805807,129.9,129.77,18.64964886]
[1750598829312,8.69975505,129.9,129.77,18.64964886]
[1750598830107,8.69975505,129.9,129.77,44.64964886]
[1750598830503,8.69975505,129.9,129.81,18.64964886]
[1750598831036,8.69975505,129.9,129.83,18.64964886]
[1750598832034,7.6923816,130.0,129.83,18.64964886]
[1750598832232,16.22383457,130.01,129.87,18.64964886]
[1750598832596,8.53208808,130.01,129.87,18.64964886]
[1750598832809,8.53208808,130.01,129.89,18.64964886]
[1750598833110,16.22427172,130.01,129.89,18.64964886]
[1750598833501,26.0,129.97,129.88,7.69941484]
[1750598833702,26.0,129.97,129.86,7.70060064]
[1750598833923,26.0,129.97,129.86,26.3502495]
[1750598834228,25.0,129.97,129.87,18.64964886]
[1750598834400,25.0,129.97,129.86,26.95210225]
[1750598834608,25.0,129.97,129.78,18.64964886]
[1750598834804,26.93343593,129.95,129.79,7.70475383]
[1750598835129,18.64964886,129.94,129.79,7.70475383]
[1750598835824,18.64964886,129.94,129.8,18.64964886]
[1750598836021,18.64964886,129.94,129.79,26.96663841]
[1750598836327,26.0,129.87,129.79,7.70475383]
[1750598836498,26.0,129.87,129.75,19.26640747]
[1750598836499,26.0,129.87,129.76,7.70653514]
[1750598836901,26.0,129.87,129.71,38.88]
[1750598836902,33.70043564,129.87,129.72,65.52574775]
[1750598837232,33.70043564,129.87,129.72,26.98119025]
[1750598837527,26.0,129.86,129.73,18.64964886]
[1750598837701,26.0,129.85,129.73,18.64964886]
[1750598838128,26.0,129.85,129.72,26.98119025]
[1750598838331,26.0,129.85,129.72,7.7089115]
[1750598838704,26.0,129.84,129.72,26.98119025]
[1750598838946,26.0,129.84,129.73,18.64964886]
[1750598839253,26.0,129.8,129.66,7.71247879]
[1750598839534,26.0,129.8,129.66,26.99367576]
[1750598839700,26.0,129.8,129.66,7.71247879]
[1750598839906,26.0,129.79,129.66,7.71247879]
[1750598840102,26.0,129.79,129.67,18.64964886]
[1750598840418,26.0,129.79,129.66,7.71247879]
[1750598841107,26.0,129.79,129.67,18.64964886]
[1750598841302,18.13068297,129.88,129.67,18.64964886]
[1750598841522,18.64964886,129.87,129.67,18.64964886]
[1750598841838,26.0,129.81,129.67,18.64964886]
[1750598842012,26.0,129.77,129.66,26.99367576]
[1750598842215,26.0,129.77,129.66,7.71247879]
[1750598842524,26.0,129.77,129.75,17.60785647]
[1750598842732,26.0,129.82,129.75,17.60785647]
[1750598842944,8.13068297,129.88,129.76,18.64964886]
[1750598843145,8.13068297,129.88,129.76,7.70653514]
[1750598843348,8.13068297,129.88,129.76,26.356184]
[1750598843554,26.0,129.85,129.76,7.70653514]
[1750598843853,8.13068297,129.88,129.76,7.70653514]
[1750598844007,15.83015899,129.88,129.76,7.70653514]
[1750598844322,8.13068297,129.88,129.77,18.64964886]
[1750598844711,8.13068297,129.88,129.77,44.64964886]
[1750598844936,8.13068297,129.88,129.82,26.0]
[1750598845111,6.0441,129.96,129.85,18.64964886]
[1750598845541,26.0,129.93,129.84,7.70178681]
[1750598845851,26.0,129.92,129.82,7.70247619]
[1750598846146,26.0,129.92,129.79,7.70475383]
[1750598846439,26.0,129.88,129.8,18.64964886]
[1750598846631,26.0,129.88,129.79,7.70475383]
[1750598846839,26.0,129.88,129.76,19.26534976]
[1750598846840,26.0,129.84,129.76,7.70653514]
[1750598847520,33.70198201,129.84,129.75,25.31484331]
[1750598847710,33.70198201,129.84,129.75,17.60785647]
[1750598847711,26.0,129.8,129.75,17.60785647]
[1750598847911,26.0,129.8,129.75,9.27465647]
[1750598848143,26.0,129.76,129.75,2.60805647]
[1750598848320,18.64964886,129.75,129.62,7.71447267]
[1750598848530,26.0,129.72,129.62,7.71447267]
[1750598848841,18.64964886,129.73,129.62,7.71447267]
[1750598849011,8.3005964,129.74,129.62,19.28714704]
[1750598849334,26.0,129.71,129.62,19.28714704]
[1750598849637,8.3005964,129.74,129.63,18.64964886]
[1750598850811,26.0,129.73,129.63,18.64964886]
[1750598851017,26.0,129.73,129.64,7.71366862]
[1750598852031,26.0,129.73,129.64,26.99784017]
[1750598852548,8.3005964,129.74,129.63,26.36386976]
[1750598852714,26.0,129.71,129.63,7.7142209]
[1750598852913,26.0,129.71,129.57,38.58118195]
[1750598853219,26.0,129.71,129.55,6.1481]
[1750598853220,26.0,129.71,129.59,18.64964886]
[1750598854218,7.70958365,129.71,129.58,7.71724031]
[1750598854532,26.0,129.68,129.59,18.64964886]
[1750598855051,26.0,129.68,129.61,18.64964886]
[1750598855229,7.70892764,129.72,129.61,18.64964886]
[1750598855541,26.0,129.7,129.61,18.64964886]
[1750598856148,26.0,129.7,129.6,27.00617283]
[1750598856661,16.00835203,129.74,129.61,18.64964886]
[1750598856943,26.0,129.71,129.61,18.64964886]
[1750598857162,26.0,129.71,129.62,7.71485881]
[1750598857332,26.0,129.67,129.57,27.01173914]
[1750598857536,38.53448263,129.76,129.57,27.01173914]
[1750598857537,8.14764288,129.73,129.58,18.64964886]
[1750598858156,26.0,129.7,129.58,18.64964886]
[1750598858583,8.14764288,129.73,129.62,18.64964886]
[1750598859193,8.14764288,129.73,129.63,26.99992285]
[1750598859395,34.14764288,129.73,129.64,18.64964886]
[1750598859988,26.0,129.7,129.63,7.71426367]
[1750598860189,26.0,129.7,129.64,18.64964886]
[1750598860393,8.14764288,129.73,129.64,18.64964886]
[1750598860884,26.0,129.7,129.64,18.64964886]
[1750598861292,26.0,129.7,129.65,7.71307365]
[1750598861874,26.0,129.7,129.61,27.00408918]
[1750598862072,26.0,129.7,129.62,18.64964886]
[1750598862272,26.0,129.72,129.62,18.64964886]
[1750598862592,6.48104288,129.73,129.68,18.64964886]
[1750598862894,16.69904843,129.85,129.72,18.64964886]
[1750598863383,7.70356675,129.81,129.68,26.98951263]
[1750598863587,7.70356675,129.81,129.69,18.64964886]
[1750598863762,26.96248362,129.81,129.69,18.64964886]
[1750598863963,26.0,129.8,129.69,18.64964886]
[1750598864886,26.0,129.8,129.68,7.71128932]
[1750598865261,26.0,129.76,129.67,1.6476]
[1750598865683,26.0,129.76,129.66,6.3728]
[1750598865887,26.0,129.76,129.59,1.514]
[1750598865888,26.0,129.68,129.6,6.2902]
[1750598866063,26.0,129.68,129.54,6.2902]
[1750598866268,26.0,129.63,129.47,33.30081381]
[1750598866606,26.0,129.59,129.47,6.2902]
[1750598866964,26.0,129.55,129.4,6.2902]
[1750598867163,36.0,129.55,129.4,6.2902]
[1750598867390,26.0,129.52,129.4,6.2902]
[1750598867560,36.0,129.52,129.4,6.2902]
[1750598867758,26.0,129.45,129.39,0.75742115]
[1750598868277,28.64964886,129.52,129.39,0.75742115]
[1750598868470,18.64964886,129.44,129.39,1e-08]
[1750598868669,18.64964886,129.44,129.24,21.05959226]
[1750598868670,26.0,129.35,129.24,1.7166804]
[1750598868869,26.0,129.35,129.29,10.74117988]
[1750598869282,33.73395204,129.3,129.29,10.74117988]
[1750598869492,33.73395204,129.3,129.24,1.7568059]
[1750598869664,17.73395204,129.3,129.24,1.7568059]
[1750598869865,7.73395204,129.3,129.24,1.7568059]
[1750598870067,26.0,129.23,129.11,0.23653022]
[1750598870283,10.0,129.28,129.11,0.23653022]
[1750598870487,6.9946072,129.22,129.11,0.23653022]
[1750598870870,26.0,129.24,129.11,0.23653022]
[1750598871076,17.29685689,129.26,129.11,0.23653022]
[1750598871278,18.64964886,129.22,129.11,0.23653022]
[1750598871478,26.0,129.19,129.11,0.23653022]
[1750598871677,25.03559702,129.22,129.11,0.23653022]
[1750598871892,26.0,129.18,129.11,0.23653022]
[1750598872293,26.0,129.14,129.11,0.23653022]
[1750598872805,13.78727998,129.17,129.11,0.23653022]
[1750598873170,13.78727998,129.17,129.07,6.30097839]
[1750598873372,26.0,129.14,129.07,6.30097839]
[1750598873683,8.24237472,129.16,129.07,6.30097839]
[1750598873684,11.48211844,129.15,129.07,6.30097839]
[1750598873977,11.48211844,129.15,129.08,1.514]
[1750598874791,11.48211844,129.15,129.08,9.26113356]
[1750598874996,11.48211844,129.15,129.07,6.30097839]
[1750598875174,11.48211844,129.15,129.07,14.04841074]
[1750598875368,11.48211844,129.15,129.07,40.04841074]
[1750598875597,11.48211844,129.15,129.09,1.514]
[1750598875898,11.48211844,129.15,129.11,26.0]
[1750598876101,7.73156022,129.34,129.13,26.0]
[1750598876478,46.73058318,129.36,129.17,26.0]
[1750598876675,7.59303273,129.33,129.14,26.0]
[1750598876981,7.59303273,129.33,129.17,10.0]
[1750598877184,7.59303273,129.33,129.24,26.0]
[1750598877375,7.59303273,129.33,129.26,27.07720872]
[1750598878484,9.6401726,129.46,129.26,65.75893547]
[1750598878681,17.36492711,129.46,129.26,27.07720872]
[1750598878900,0.5,129.32,129.26,27.07720872]
[1750598879110,9.8958816,129.45,129.29,26.0]
[1750598879403,26.0,129.41,129.27,26.0]
[1750598879615,8.89177831,129.44,129.29,26.0]
[1750598880313,8.89177831,129.44,129.26,65.75893547]
[1750598880507,8.89177831,129.44,129.26,27.07720872]
[1750598880712,10.0,129.4,129.24,13.84791926]
[1750598880912,26.0,129.37,129.24,33.19177565]
[1750598881212,26.0,129.32,129.17,7.74173569]
[1750598881387,26.0,129.28,129.17,7.74173569]
[1750598881582,9.37907359,129.34,129.17,17.74173569]
[1750598881819,9.37907359,129.34,129.17,7.74173569]
[1750598882030,9.37907359,129.34,129.23,7.6635]
[1750598882201,9.16000172,129.44,129.28,10.0]
[1750598882525,9.16000172,129.44,129.36,26.0]
[1750598882712,9.16000172,129.44,129.36,36.0]
[1750598882907,9.16000172,129.44,129.39,6.061]
[1750598883219,11.6211,129.68,129.39,7.6073]
[1750598883220,10.30055246,129.57,129.39,7.6073]
[1750598883384,10.30055246,129.57,129.43,27.04164412]
[1750598883589,10.0,129.55,129.41,7.72724577]
[1750598883789,10.0,129.5,129.32,7.73275595]
[1750598884092,26.0,129.48,129.32,7.73275595]
[1750598884299,26.0,129.46,129.38,23.209934]
[1750598884501,26.0,129.46,129.32,27.06464583]
[1750598884713,26.0,129.46,129.32,7.73275595]
[1750598885015,26.0,129.41,129.3,7.73348193]
[1750598885324,33.72783855,129.41,129.26,19.34086337]
[1750598885818,26.0,129.37,129.24,7.73754255]
[1750598886314,18.64964886,129.36,129.24,7.73754255]
[1750598886523,26.0,129.37,129.16,29.372805]
[1750598886524,26.0,129.37,129.16,6.1242]
[1750598886689,26.0,129.3,129.12,27.10656753]
[1750598886896,26.0,129.3,129.09,10.0]
[1750598886897,36.0,129.23,129.09,10.0]
[1750598887090,26.0,129.23,129.09,7.74640862]
[1750598887422,10.0,129.26,129.0,0.53]
[1750598887423,26.0,129.13,129.0,0.53]
[1750598887599,26.0,129.08,129.0,0.53]
[1750598887804,36.0,129.08,129.0,0.53]
[1750598888003,26.0,129.05,129.0,0.53]
[1750598888208,26.0,129.05,128.97,2.1348159]
[1750598888209,10.0,129.01,128.97,2.1348159]
[1750598888412,10.0,129.01,128.91,23.28]
[1750598888413,26.0,128.98,128.91,23.28]
[1750598888608,10.0,129.0,128.91,23.28]
[1750598888926,36.0,128.93,128.78,0.81029685]
[1750598889094,26.0,128.86,128.85,4.88223291]
[1750598889292,26.0,128.86,128.78,0.81029685]
[1750598889293,10.0,128.85,128.78,0.81029685]
[1750598889493,26.0,128.81,128.78,0.81029685]
[1750598889724,10.0,128.8,128.78,0.81029685]
[1750598890015,10.0,128.77,128.7,1.7568059]
[1750598890226,10.0,128.71,128.52,1.0]
[1750598890400,26.0,128.69,128.52,1.0]
[1750598890827,26.0,128.52,128.37,239.1]
[1750598891015,10.0,128.45,128.37,23.347212]
[1750598891220,10.0,128.5,128.28,7.79544745]
[1750598891430,47.84425113,128.51,128.22,7.34147726]
[1750598891431,26.0,128.46,128.22,7.34147726]
[1750598891652,10.0,128.39,128.18,8.06979646]
[1750598891799,10.0,128.37,128.18,6.51639646]
[1750598891989,26.0,128.29,128.18,6.51639646]
[1750598892395,9.68561975,128.36,128.18,6.51639646]
[1750598892396,10.0,128.33,128.18,6.51639646]
[1750598892702,9.68561975,128.36,128.18,6.51639646]
[1750598892703,8.13176936,128.28,128.18,6.51639646]
[1750598893027,8.13176936,128.28,128.18,14.31751273]
[1750598893193,8.13176936,128.28,128.18,24.31751273]
[1750598893393,34.13176936,128.28,128.18,6.51639646]
[1750598893589,27.28619318,128.27,128.18,2.81840863]
[1750598893823,27.28619318,128.27,128.04,239.1]
[1750598893824,10.0,128.13,128.04,239.1]
[1750598894012,39.14,128.26,128.0,30.34590909]
[1750598894013,10.0,128.09,128.0,30.34590909]
[1750598894212,10.0,128.03,127.96,6.57025097]
[1750598894425,39.14,128.09,127.84,1.0]
[1750598894427,10.0,127.93,127.84,1.0]
[1750598894601,10.0,127.93,127.74,6.62410549]
[1750598894602,0.7545956,127.9,127.74,6.62410549]
[1750598894790,39.14,127.93,127.74,6.62410549]
[1750598894995,10.0,127.78,127.63,1.7978692]
[1750598895202,10.0,127.73,127.63,1.7978692]
[1750598895411,7.82656335,127.77,127.63,1.7978692]
[1750598895734,7.82656335,127.77,127.52,6.67796]
[1750598895735,8.74338414,127.72,127.52,6.67796]
[1750598895942,39.23341083,127.99,127.76,2.88868722]
[1750598896107,9.16470838,128.04,127.83,2.88868722]
[1750598896308,7.61131278,128.06,127.8,2.38868722]
[1750598896531,10.42892059,127.98,127.71,2.38868722]
[1750598896722,1.52333532,127.89,127.61,6.4281]
[1750598896934,10.42892059,127.98,127.85,8.47666468]
[1750598897110,1.52333532,127.96,127.76,6.4281]
[1750598897437,1.52333532,127.8,127.64,6.4281]
[1750598897643,7.81738586,127.92,127.69,8.47666468]
[1750598897802,1.52333532,127.89,127.71,8.47666468]
[1750598898009,1.52333532,127.85,127.67,8.47666468]
[1750598898242,1.52333532,127.88,127.65,8.47666468]
[1750598898532,1.52333532,127.79,127.64,14.26220459]
[1750598898707,1.52333532,127.81,127.64,33.84854116]
[1750598898908,7.83832631,127.94,127.72,8.47666468]
[1750598899174,1.52333532,127.85,127.64,14.26220459]
[1750598899440,7.83832631,127.94,127.89,8.47666468]
[1750598899607,16.55747651,128.07,127.85,8.47666468]
[1750598899805,16.55747651,128.07,127.84,1.6068]
[1750598899806,8.74900248,128.07,127.98,8.47666468]
[1750598900008,8.74900248,128.07,128.01,26.0]
[1750598900204,19.48475538,128.31,128.1,8.47666468]
[1750598900436,39.94973738,128.33,128.15,26.0]
[1750598900617,39.94973738,128.33,127.96,6.6585609]
[1750598900618,23.486124,128.15,128.1,26.0]
[1750598900813,9.71314503,128.26,128.09,8.47666468]
[1750598901003,23.453991,128.24,128.11,8.47666468]
[1750598901205,23.453991,128.24,128.0,23.463163]
[1750598901206,4.16521439,128.23,128.0,23.463163]
[1750598901524,4.16521439,128.23,128.01,66.40106241]
[1750598901733,4.16521439,128.23,128.02,1.6068]
[1750598902436,4.16521439,128.23,128.03,6.3532]
[1750598903251,4.16521439,128.23,128.06,26.0]
[1750598903563,8.49444424,128.37,128.1,26.0]
[1750598903762,8.49444424,128.37,128.14,26.0]
[1750598903931,8.4693194,128.5,128.18,26.0]
[1750598904135,8.4693194,128.5,128.22,26.0]
[1750598904345,8.4693194,128.5,128.26,26.0]
[1750598904552,10.0,128.5,128.26,26.0]
[1750598904733,10.0,128.53,128.26,26.0]
[1750598904929,41.1178692,128.57,128.26,26.0]
[1750598904930,10.0,128.51,128.26,26.0]
[1750598905128,10.0,128.49,128.26,26.0]
[1750598905328,1.7978692,128.57,128.3,26.0]
[1750598905735,0.7,128.56,128.3,26.0]
[1750598905935,1.7978692,128.57,128.3,26.0]
[1750598906132,1.7978692,128.57,128.31,26.0]
[1750598906444,1.7978692,128.57,128.32,6.6585609]
[1750598906627,1.7978692,128.57,128.28,38.28225982]
[1750598906826,1.25945256,128.58,128.39,26.0]
[1750598907031,1.25945256,128.53,128.31,8.74054744]
[1750598907231,1.25945256,128.52,128.33,8.74054744]
[1750598907527,1.25945256,128.46,128.32,66.24064837]
[1750598907734,1.25945256,128.43,128.32,27.27556109]
[1750598907934,27.25945256,128.46,128.32,27.27556109]
[1750598908153,1.25945256,128.44,128.32,27.27556109]
[1750598908334,1.25945256,128.48,128.32,27.27556109]
[1750598908543,1.25945256,128.43,128.32,19.48254364]
[1750598908844,1.25945256,128.47,128.32,19.48254364]
[1750598909044,1.25945256,128.41,128.32,19.48254364]
[1750598909254,1.25945256,128.37,128.2,7.80031201]
[1750598909426,1.25945256,128.37,128.24,38.98906821]
[1750598909631,1.25945256,128.33,128.2,27.30109204]
[1750598909851,1.25945256,128.36,128.2,27.30109204]
[1750598910031,39.32,128.43,128.24,8.74054744]
[1750598910237,39.32,128.43,128.21,18.64964886]
[1750598910238,1.25945256,128.34,128.21,18.64964886]
[1750598910440,1.25945256,128.32,128.2,27.30109204]
[1750598910750,1.25945256,128.3,128.2,7.80031201]
[1750598910930,1.25945256,128.13,128.09,18.65547688]
[1750598911131,1.25945256,128.13,127.86,40.8877]
[1750598911132,1.25945256,128.06,128.03,4.0466447]
[1750598911436,1.25945256,128.1,127.94,23.438416]
[1750598911659,26.0,128.09,127.9,8.74054744]
[1750598911963,26.0,127.86,127.77,257.96009463]
[1750598912258,36.0,127.82,127.65,19.58344518]
[1750598912457,39.34,127.87,127.65,19.58344518]
[1750598912458,26.0,127.8,127.65,19.58344518]
[1750598912842,26.0,127.76,127.63,1.7978692]
[1750598913154,3.5957384,127.63,127.44,440.4]
[1750598913328,3.5957384,127.63,127.36,768.65594717]
[1750598913329,55.52555164,127.62,127.37,27.47899819]
[1750598913533,26.0,127.72,127.48,10.0]
[1750598913770,45.57719679,127.7,127.37,76.73470989]
[1750598913937,26.0,127.62,127.37,7.85114234]
[1750598914264,26.0,127.62,127.37,10.0]
[1750598914430,19.57719679,127.7,127.45,10.0]
[1750598914431,39.42,127.68,127.45,10.0]
[1750598914631,18.64964886,127.7,127.49,10.0]
[1750598914853,18.64964886,127.7,127.36,1.7978692]
[1750598914854,37.30512574,127.68,127.36,1.7978692]
[1750598915055,18.64964886,127.64,127.36,1.7978692]
[1750598915235,26.0,127.57,127.29,14.60774457]
[1750598915450,66.23633555,127.56,127.29,6.75181452]
[1750598915647,11.14201412,127.56,127.3,10.0]
[1750598915949,18.64964886,127.58,127.32,10.0]
[1750598916256,18.64964886,127.54,127.29,6.75181452]
[1750598916438,11.94140203,127.53,127.29,6.75181452]
[1750598916641,39.42,127.52,127.12,6.3833]
[1750598916958,65.2952437,127.51,127.22,18.65547688]
[1750598917158,58.10964886,127.5,127.2,10.0]
[1750598917341,7.84682988,127.44,127.19,10.0]
[1750598917543,7.84682988,127.44,127.13,7.86596397]
[1750598917544,18.64964886,127.39,127.13,7.86596397]
[1750598917755,26.0,127.35,127.1,7.86782061]
[1750598917932,26.0,127.31,127.09,1.7978692]
[1750598918135,26.0,127.27,127.09,9.66590839]
[1750598918336,39.46,127.36,127.2,10.0]
[1750598918567,50.6063357,127.36,127.17,10.0]
[1750598918864,9.42138452,127.35,127.18,10.0]
[1750598919168,39.46,127.36,127.21,10.0]
[1750598919458,7.60544848,127.42,127.22,10.0]
[1750598919758,34.99403696,127.49,127.31,10.0]
[1750598919972,27.45427693,127.49,127.28,10.0]
[1750598920263,27.45427693,127.49,127.15,17.8647267]
[1750598920264,6.19645568,127.35,127.15,17.8647267]
[1750598920458,26.0,127.32,127.17,10.0]
[1750598920653,8.03637272,127.34,127.27,10.0]
[1750598920857,8.03637272,127.34,127.33,10.0]
[1750598921056,8.03637272,127.34,127.27,10.0]
[1750598921368,6.19645568,127.35,127.34,10.0]
[1750598921535,39.5,127.57,127.34,17.85299198]
[1750598921738,7.85843165,127.58,127.5,10.0]
[1750598921962,7.8320802,127.68,127.53,10.0]
[1750598922144,8.16545769,127.69,127.59,10.0]
[1750598922346,8.16545769,127.69,127.4,39.5]
[1750598922347,8.16545769,127.69,127.6,10.0]
[1750598922545,8.16545769,127.69,127.4,39.5]
[1750598922546,8.16545769,127.69,127.63,10.0]
[1750598922745,23.482447,127.75,127.66,10.0]
[1750598923045,17.76295434,127.8,127.65,10.0]
[1750598923253,10.0,127.79,127.67,6.0]
[1750598923442,8.3011442,127.8,127.69,6.0]
[1750598923644,8.3011442,127.8,127.67,27.41442781]
[1750598923859,8.3011442,127.8,127.79,6.0]
[1750598924170,8.05041841,127.9,127.74,6.0]